bitfinex-derivatives/quotes_ETHF0:USTF0_20250213
["timestamp","ask_amount","ask_price","bid_price","bid_amount"]
[1739437364150,3.2078,2670.7,2670.1,7.08836758]
[1739437364454,3.2078,2670.7,2670.1,8.96066758]
[1739437364654,3.80209529,2670.7,2670.1,7.08836758]
[1739437364855,0.74879,2670.6,2670.4,0.74882]
[1739437365056,0.74878,2670.6,2670.1,7.08836758]
[1739437365249,3.2078,2670.7,2670.5,0.74881]
[1739437365452,0.74872,2670.9,2670.7,0.74874]
[1739437365646,3.2078,2671.0,2670.5,0.74881]
[1739437365849,3.2078,2671.0,2670.2,0.5533]
[1739437365850,0.74882,2670.5,2670.2,0.5533]
[1739437366045,0.74887,2670.3,2670.2,0.5533]
[1739437366856,0.59478282,2670.6,2670.2,0.5533]
[1739437367248,0.59478282,2670.6,2670.5,0.74881]
[1739437367457,3.2078,2670.7,2670.6,0.74878]
[1739437367658,3.95657,2670.7,2670.5,0.74879]
[1739437367856,0.59478282,2670.6,2670.2,0.5533]
[1739437368058,0.74886,2670.4,2670.2,1.30218]
[1739437368560,3.2078,2670.7,2670.2,1.30218]
[1739437368762,3.2078,2670.7,2670.2,0.5533]
[1739437368961,3.80258282,2670.7,2670.2,0.5533]
[1739437369150,0.74885,2670.4,2670.2,0.5533]
[1739437369353,3.2078,2670.7,2670.2,0.5533]
[1739437369558,0.74887,2670.3,2670.2,0.5533]
[1739437369860,3.2078,2670.7,2669.8,7.66926758]
[1739437369861,3.2078,2670.4,2669.8,7.66926758]
[1739437370061,0.74891,2670.2,2669.8,4.46146758]
[1739437370262,0.74888,2670.3,2669.8,4.46146758]
[1739437370458,1.34366282,2670.3,2670.1,0.74891]
[1739437370762,0.74894,2670.1,2669.9,0.74896]
[1739437370956,0.59478282,2670.3,2670.0,0.74893]
[1739437370957,0.74891,2670.2,2670.0,0.74893]
[1739437371158,0.59478282,2670.3,2669.8,4.46146758]
[1739437371358,0.59478282,2670.3,2670.2,0.74889]
[1739437371652,0.59478282,2670.6,2670.1,3.88056758]
[1739437371857,3.2078,2670.7,2670.3,0.74887]
[1739437372059,0.74883,2670.5,2670.3,0.74887]
[1739437372254,3.2078,2670.7,2670.1,3.88056758]
[1739437372563,0.74883,2670.5,2670.3,0.74885]
[1739437372767,1.34358282,2670.6,2670.1,3.88056758]
[1739437372963,0.59478282,2670.6,2670.1,3.88056758]
[1739437373158,0.59478282,2670.6,2670.5,0.74881]
[1739437373370,3.2078,2671.0,2670.6,0.74877]
[1739437373753,3.2078,2671.0,2670.7,40.8]
[1739437373960,0.74873,2670.8,2670.7,40.8]
[1739437374158,3.2078,2671.0,2670.4,3.88056758]
[1739437374663,0.74875,2670.8,2670.6,0.74877]
[1739437374963,0.74877,2670.7,2670.5,41.5488]
[1739437375168,0.59478282,2670.9,2670.5,41.5488]
[1739437375466,3.2078,2671.0,2670.5,40.8]
[1739437375859,0.74877,2670.7,2670.5,41.54879]
[1739437376058,0.74878,2670.6,2670.5,40.8]
[1739437376367,0.74881,2670.5,2670.4,0.5576]
[1739437376563,0.74881,2670.6,2670.4,1.30643]
[1739437377068,0.74884,2670.4,2670.3,3.2078]
[1739437377258,3.2078,2670.5,2669.9,3.7814]
[1739437377460,0.74892,2670.1,2669.9,0.5736]
[1739437377657,0.5478,2670.4,2670.1,0.74891]
[1739437377861,0.59478282,2670.4,2670.3,0.74887]
[1739437378265,0.59478282,2670.4,2670.3,3.95667]
[1739437378469,0.5478,2670.8,2670.7,0.74875]
[1739437378671,0.5478,2670.8,2670.3,3.2078]
[1739437378969,3.2078,2670.7,2670.1,3.88056758]
[1739437379167,0.74886,2670.4,2670.1,3.88056758]
[1739437379369,0.74886,2670.4,2670.3,0.74887]
[1739437379567,1.20497268,2670.6,2670.1,3.88056758]
[1739437379770,0.74884,2670.4,2670.3,0.74885]
[1739437379962,1.20497268,2670.6,2670.1,3.88056758]
[1739437380271,0.59478282,2670.6,2670.1,3.88056758]
[1739437380567,0.5422,2670.5,2670.4,0.74884]
[1739437380773,0.61018986,2670.6,2670.1,3.88056758]
[1739437380970,4.41277268,2670.7,2670.6,0.74878]
[1739437381170,0.59478282,2670.7,2670.6,0.74878]
[1739437381367,1.34355282,2670.7,2670.4,3.88056758]
[1739437381571,0.59478282,2670.7,2670.6,0.74878]
[1739437381767,0.59478282,2670.9,2670.4,3.88056758]
[1739437382175,0.59478282,2670.8,2670.4,3.88056758]
[1739437382366,0.59478282,2670.8,2670.7,0.74875]
[1739437382571,0.61131952,2671.0,2670.9,0.7487]
[1739437382768,1.16881952,2671.2,2671.1,0.74864]
[1739437382975,1.91744952,2671.2,2670.8,0.5600279]
[1739437383169,1.21232119,2671.2,2671.1,0.74864]
[1739437383364,0.60100167,2671.2,2671.1,0.74864]
[1739437383574,0.60100167,2671.5,2671.0,4.62921758]
[1739437383974,0.60100167,2671.4,2671.1,40.8]
[1739437384180,0.60100167,2671.4,2671.3,4.62915758]
[1739437384473,0.60100167,2671.5,2671.3,3.88056758]
[1739437384779,0.74856,2671.4,2671.3,40.8]
[1739437385170,1.21327883,2671.6,2671.0,3.88056758]
[1739437385372,0.74861,2671.3,2671.1,0.74863]
[1739437385681,1.21327883,2671.6,2671.0,3.88056758]
[1739437385882,3.2078,2671.7,2671.0,3.88056758]
[1739437385883,0.74856,2671.4,2671.1,0.74863]
[1739437386084,0.74856,2671.4,2671.0,3.88056758]
[1739437386277,0.60100167,2671.5,2671.0,44.68056758]
[1739437386484,0.60100167,2671.6,2671.2,0.7486]
[1739437386880,0.74858,2671.4,2671.1,0.74862]
[1739437387081,0.61227716,2671.6,2671.0,3.88056758]
[1739437387288,0.74861,2671.3,2671.0,4.62922758]
[1739437387477,3.2078,2671.4,2670.9,4.97642525]
[1739437387781,0.74865,2671.1,2670.9,1.76862525]
[1739437388080,0.74865,2671.1,2670.9,2.51731525]
[1739437388273,0.74866,2671.1,2670.9,2.51731525]
[1739437388676,1.21327883,2671.3,2670.9,2.51731525]
[1739437388677,0.74867,2671.0,2670.9,0.00562525]
[1739437388879,0.5987,2671.2,2670.9,0.00562525]
[1739437389080,0.74867,2671.0,2670.9,0.00562525]
[1739437389281,0.5987,2671.2,2670.9,0.00562525]
[1739437389282,1.34733,2671.2,2670.9,0.00562525]
[1739437389478,0.74866,2671.1,2670.9,0.75431525]
[1739437389680,0.74867,2671.0,2670.9,0.00562525]
[1739437390380,1.78067883,2671.3,2670.9,3.21342525]
[1739437390584,1.21327883,2671.3,2671.2,0.74861]
[1739437390776,0.60100167,2671.3,2671.2,0.74861]
[1739437391279,0.60100167,2671.4,2671.3,0.74859]
[1739437391473,1.21312226,2671.8,2671.3,3.2078]
[1739437391675,0.60100167,2671.8,2671.3,3.2078]
[1739437391878,0.74856,2671.4,2671.3,3.2078]
[1739437392288,0.74863,2671.2,2671.0,0.74866]
[1739437392483,0.74867,2671.0,2670.9,0.00562525]
[1739437393977,1.34967167,2671.0,2670.9,0.00245371]
[1739437394180,1.96179226,2671.0,2670.9,0.00245371]
[1739437394782,1.34967167,2671.0,2670.9,0.00245371]
[1739437394983,1.9619145,2671.0,2670.9,0.00245371]
[1739437395381,1.34967167,2671.0,2670.9,0.00245371]
[1739437395779,1.87178,2670.9,2670.2,3.2078]
[1739437396087,3.2078,2670.8,2670.3,40.8]
[1739437396384,1.21325048,2670.9,2670.3,40.8]
[1739437396580,0.74873,2670.8,2670.6,0.74877]
[1739437396779,1.78825048,2671.0,2670.3,44.65068967]
[1739437396983,0.74876,2670.7,2670.5,0.74879]
[1739437397184,1.78825048,2671.0,2670.6,0.74876]
[1739437397385,1.17600167,2671.0,2670.5,1.1787]
[1739437397588,1.18728385,2671.0,2670.5,5.13529]
[1739437397780,0.74877,2670.7,2670.5,1.92749]
[1739437398086,0.74874,2670.8,2670.6,0.74878]
[1739437398486,1.78828552,2671.0,2670.5,1.1787]
[1739437398686,0.74875,2670.8,2670.6,0.74878]
[1739437398889,0.74874,2670.8,2670.5,1.1787]
[1739437399190,0.74876,2670.7,2670.5,1.9275]
[1739437399494,1.78828552,2671.0,2670.5,1.92751]
[1739437399794,1.78828552,2671.0,2670.6,0.74877]
[1739437400089,0.60100167,2671.0,2670.9,0.7487]
[1739437400285,0.00317154,2671.2,2670.9,3.85068967]
[1739437400486,0.00317154,2671.2,2671.1,3.95644]
[1739437400881,0.00317154,2671.2,2671.1,9.95644]
[1739437401082,1.21326689,2672.0,2671.3,3.85068967]
[1739437401083,0.61226522,2672.0,2671.3,3.85068967]
[1739437401280,3.82006522,2672.1,2671.4,3.7764]
[1739437401481,0.74841,2672.0,2671.8,0.74844]
[1739437401690,1.96167689,2672.0,2671.8,0.74844]
[1739437401888,1.96165689,2672.0,2671.6,0.29968168]
[1739437402092,0.60100167,2671.9,2671.5,40.8]
[1739437402285,0.74846,2671.8,2671.6,0.74849]
[1739437402479,0.60100167,2671.9,2671.5,40.8]
[1739437402684,1.34944167,2671.9,2671.7,0.74847]
[1739437402991,0.60100167,2671.9,2671.6,0.74849]
[1739437403192,0.60100167,2671.9,2671.5,41.54852]
[1739437403378,0.74846,2671.8,2671.6,0.7485]
[1739437403992,1.21326689,2672.0,2671.5,40.8]
[1739437404189,0.60100167,2671.9,2671.8,0.74844]
[1739437404384,0.60100167,2671.9,2671.5,40.8]
[1739437404584,0.60100167,2671.9,2671.8,0.74845]
[1739437404883,1.21326689,2672.0,2671.6,0.7485]
[1739437405090,1.96166689,2672.0,2671.8,0.74843]
[1739437405291,1.21326689,2672.0,2671.8,0.74842]
[1739437405486,0.60100167,2672.0,2671.9,0.74842]
[1739437405889,0.61226522,2672.0,2671.9,0.32665188]
[1739437406081,1.21326689,2672.0,2671.9,0.32665188]
[1739437406282,0.60100167,2672.0,2671.9,3.2078]
[1739437406594,0.00241792,2672.2,2671.9,7.05848967]
[1739437406893,0.00241792,2672.2,2672.0,0.5508]
[1739437406894,0.74836,2672.1,2672.0,0.5508]
[1739437407191,0.00241792,2672.2,2672.1,0.74836]
[1739437407491,0.00241792,2672.2,2672.1,1.30636]
[1739437407688,0.75074792,2672.2,2672.1,1.30636]
[1739437407886,0.00241792,2672.2,2672.1,1.30636]
[1739437408883,0.75074792,2672.2,2672.1,1.30636]
[1739437409198,0.00241792,2672.2,2672.1,1.30636]
[1739437410082,0.60100167,2672.6,2672.1,0.558]
[1739437410286,0.60100167,2672.6,2672.5,0.74825]
[1739437410691,0.74814,2672.9,2672.7,0.74817]
[1739437410993,0.74819,2672.8,2672.6,4.59889967]
[1739437411193,0.60100167,2673.0,2672.4,0.5622]
[1739437411394,0.74833,2672.2,2672.1,0.558]
[1739437411694,0.74826,2672.5,2672.3,0.74828]
[1739437411896,0.74826,2672.5,2672.4,0.74828]
[1739437412101,0.60100167,2672.7,2672.6,0.74821]
[1739437412288,3.2078,2674.0,2672.7,1.87045]
[1739437412597,5.07759,2673.7,2673.0,3.85068967]
[1739437412896,0.74807,2673.2,2673.1,40.80561451]
[1739437413092,0.74807,2673.2,2673.1,0.00561451]
[1739437414186,1.1036,2673.6,2673.1,0.00561451]
[1739437414686,0.74804,2673.3,2673.1,0.75368451]
[1739437414887,0.74805,2673.3,2673.1,0.75369451]
[1739437415295,1.1036,2673.6,2673.1,0.00561451]
[1739437415693,0.74805,2673.2,2673.1,0.00561451]
[1739437416289,1.1036,2673.6,2673.1,0.00561451]
[1739437416486,0.74805,2673.2,2673.1,0.00561451]
[1739437417200,2.97352,2673.6,2673.1,0.00561451]
[1739437417396,0.74805,2673.2,2673.1,0.00561451]
[1739437418992,3.2078,2673.4,2673.1,0.00561451]
[1739437419200,1.29926,2673.6,2673.4,0.74799]
[1739437419593,0.74793,2673.7,2673.6,0.74794]
[1739437419794,3.2078,2673.9,2673.5,0.74797]
[1739437420000,0.74792,2673.7,2673.5,0.74795]
[1739437420193,3.2078,2673.9,2673.4,0.5761]
[1739437420498,0.74797,2673.5,2673.4,0.5761]
[1739437421298,3.2078,2673.9,2673.4,0.5761]
[1739437421798,0.5445,2674.0,2673.6,3.30294063]
[1739437422100,0.74791,2673.7,2673.6,3.30294063]
[1739437422293,3.2078,2673.9,2673.4,1.89118]
[1739437422294,0.74796,2673.6,2673.4,1.89118]
[1739437422496,0.74796,2673.6,2673.4,1.89119]
[1739437422687,0.56305777,2673.8,2673.4,1.1432]
[1739437422893,0.74795,2673.6,2673.4,1.89118]
[1739437423299,0.74795,2673.6,2673.1,0.00561451]
[1739437423300,0.74805,2673.2,2673.1,0.00561451]
[1739437424003,1.31835,2673.2,2673.1,0.00561451]
[1739437424200,1.88140777,2673.2,2673.1,0.00561451]
[1739437424396,1.13335777,2673.2,2673.1,0.00561451]
[1739437424602,1.88140777,2673.2,2673.1,0.00561451]
[1739437424904,1.31835,2673.2,2673.1,0.00561451]
[1739437425106,0.5703,2673.2,2673.1,0.00561451]
[1739437425301,1.31835,2673.2,2673.1,0.00561451]
[1739437425798,1.31839,2673.5,2673.3,0.74802]
[1739437426100,0.5704,2673.5,2673.1,0.00561451]
[1739437426299,1.31838,2673.5,2673.3,0.74801]
[1739437426607,0.5704,2673.5,2673.1,3.21341451]
[1739437426804,1.31837,2673.5,2673.3,0.74801]
[1739437427502,3.7921,2673.9,2673.1,3.21341451]
[1739437427705,4.53997,2673.9,2673.2,3.84392285]
[1739437428003,0.74793,2673.7,2673.5,0.74796]
[1739437428498,3.7921,2673.9,2673.2,3.84392285]
[1739437428704,0.5843,2673.9,2673.4,3.2078]
[1739437428903,0.74797,2673.6,2673.4,3.95579]
[1739437429103,3.7921,2673.9,2673.4,3.2078]
[1739437429299,0.74802,2673.4,2673.2,0.74804]
[1739437429606,0.74802,2673.4,2673.2,41.54804]
[1739437429805,0.74803,2673.3,2673.2,40.8]
[1739437430305,0.74805,2673.2,2673.1,0.00561451]
[1739437430701,0.74805,2673.3,2673.1,0.75368451]
[1739437430908,0.5907,2673.4,2673.1,0.00561451]
[1739437431099,0.74794,2673.7,2673.5,0.74797]
[1739437431407,0.74802,2673.4,2673.2,0.74804]
[1739437431600,0.56546381,2673.6,2673.3,0.74803]
[1739437431803,0.74799,2673.5,2673.3,0.74803]
[1739437432104,0.56546381,2673.8,2673.1,0.00561451]
[1739437432401,2.43523381,2673.8,2673.2,0.74804]
[1739437432608,2.43523381,2673.8,2673.1,0.75367451]
[1739437432797,0.74805,2673.2,2673.1,0.00561451]
[1739437433196,0.74804,2673.3,2673.1,0.75367451]
[1739437433398,0.56546381,2673.7,2673.1,0.00561451]
[1739437433598,0.748,2673.4,2673.3,0.74802]
[1739437433900,0.74805,2673.3,2673.1,0.75368451]
[1739437434102,3.2078,2673.6,2673.1,0.00561451]
[1739437434296,0.74805,2673.2,2673.1,0.00561451]
[1739437434702,3.2078,2673.6,2673.1,0.00561451]
[1739437435000,0.56546381,2673.5,2673.1,0.75368451]
[1739437435200,0.74805,2673.2,2673.1,0.00561451]
[1739437436413,2.48811381,2673.2,2673.1,0.00561451]
[1739437437907,1.92265,2673.2,2673.1,0.00561451]
[1739437439006,2.48811381,2673.2,2673.1,0.00561451]
[1739437440205,0.74805,2673.2,2673.1,0.00561451]
[1739437440603,0.74805,2673.3,2673.2,0.74805]
[1739437440808,1.72376381,2673.4,2673.1,0.00561451]
[1739437441010,0.74805,2673.2,2673.1,0.75368451]
[1739437441508,0.5663,2673.4,2673.3,0.74803]
[1739437441708,0.74802,2673.4,2673.3,0.74801]
[1739437441910,0.74802,2673.4,2673.3,0.74802]
[1739437442108,0.74803,2673.3,2673.2,1.29953]
[1739437442406,0.74798,2673.5,2673.4,0.74798]
[1739437442710,1.31423,2673.7,2673.6,0.74794]
[1739437442909,0.74796,2673.6,2673.5,0.74796]
[1739437443417,0.74795,2673.6,2673.5,0.74796]
[1739437444004,0.5663,2673.7,2673.2,4.93982285]
[1739437444214,0.74798,2673.5,2673.2,4.93982285]
[1739437444416,0.5663,2673.7,2673.2,4.93982285]
[1739437444611,0.74802,2673.4,2673.3,0.74802]
[1739437444802,0.5663,2673.7,2673.2,4.93982285]
[1739437445712,0.5663,2673.7,2673.2,4.39821172]
[1739437445912,0.5663,2673.7,2673.4,0.74799]
[1739437446111,0.748,2673.4,2673.3,0.74803]
[1739437446309,0.74802,2673.4,2673.3,0.74801]
[1739437446710,0.56546381,2673.8,2673.7,0.74791]
[1739437446905,0.56546381,2673.8,2673.7,4.05022172]
[1739437447220,0.74794,2673.6,2673.5,3.7978]
[1739437447515,0.74803,2673.3,2673.2,3.05954]
[1739437447715,0.74805,2673.2,2673.1,3.21341451]
[1739437449113,0.74805,2673.2,2673.1,0.00561451]
[1739437449410,1.92496093,2673.2,2673.1,0.00561451]
[1739437449614,0.74828,2672.4,2672.3,0.59]
[1739437449818,3.2078,2672.8,2672.2,0.5846]
[1739437450112,0.56546381,2672.9,2672.3,3.2078]
[1739437450315,0.56546381,2672.9,2672.2,44.68691172]
[1739437450615,3.2078,2672.8,2671.9,3.30231172]
[1739437450812,0.74839,2672.0,2671.9,3.30231172]
[1739437451013,0.56546381,2672.4,2672.1,0.00561451]
[1739437451213,0.74833,2672.2,2672.1,0.00561451]
[1739437451414,3.2078,2672.2,2671.5,0.74852]
[1739437451616,1.76,2672.3,2671.8,3.2078]
[1739437451815,0.56546381,2672.2,2671.8,3.95623]
[1739437452008,0.56546381,2672.2,2671.9,0.7484]
[1739437452212,0.56546381,2672.2,2671.8,3.2078]
[1739437452412,0.56546381,2672.2,2671.8,3.95622]
[1739437452619,1.76,2672.3,2671.9,0.74842]
[1739437452818,0.74831,2672.3,2671.9,0.74842]
[1739437453018,1.70186381,2672.4,2672.3,0.74831]
[1739437453019,0.56546381,2672.4,2672.3,0.74831]
[1739437453725,2.32441451,2672.8,2672.4,0.74827]
[1739437453919,3.07259451,2672.8,2672.4,0.74827]
[1739437454226,0.74828,2672.4,2672.3,40.8]
[1739437454720,3.2078,2672.4,2671.8,3.95623]
[1739437455024,0.5872,2672.3,2671.8,3.2078]
[1739437455219,0.74829,2672.4,2672.0,0.74837]
[1739437455422,0.56546381,2672.6,2671.9,3.84689382]
[1739437455729,0.56546381,2672.6,2672.4,0.74827]
[1739437455919,1.72756381,2672.7,2672.2,3.84689382]
[1739437456120,1.72756381,2672.7,2672.6,0.74822]
[1739437456317,0.56546381,2672.7,2672.6,0.74822]
[1739437456520,0.00561451,2672.8,2672.7,0.74819]
[1739437456825,0.74814,2672.9,2672.7,3.2078]
[1739437457021,0.5905,2673.2,2672.7,3.2078]
[1739437457224,0.74809,2673.1,2672.8,40.8]
[1739437457426,0.74808,2673.1,2672.8,40.8]
[1739437457722,1.33856,2673.2,2673.0,0.74809]
[1739437458024,0.00561451,2673.2,2672.8,40.8]
[1739437458224,0.75368451,2673.2,2672.8,40.8]
[1739437458423,0.00561451,2673.2,2672.9,1.1749]
[1739437458623,0.75368451,2673.2,2672.9,1.1749]
[1739437458823,0.74811,2673.0,2672.9,1.1749]
[1739437459119,0.00561451,2673.2,2672.9,1.92302]
[1739437459317,0.00561451,2673.2,2672.9,1.92304]
[1739437459528,0.74811,2673.0,2672.9,1.1749]
[1739437459723,0.7481,2673.1,2672.9,1.1749]
[1739437459925,0.00561451,2673.2,2672.9,1.1749]
[1739437460124,0.00561451,2673.2,2672.8,40.8]
[1739437460525,0.74814,2672.9,2672.8,40.8]
[1739437460827,0.00561451,2673.2,2672.9,0.74813]
[1739437461129,0.00561451,2673.2,2672.7,3.2078]
[1739437461728,0.00561451,2673.2,2672.7,3.95597]
[1739437462129,3.2078,2674.0,2673.1,7.05469382]
[1739437462428,0.74803,2673.3,2673.2,1.1292]
[1739437462632,3.2078,2673.7,2672.8,4.42339382]
[1739437462926,0.74807,2673.2,2672.9,0.74811]
[1739437463122,0.74805,2673.2,2672.8,4.42339382]
[1739437463323,3.7962,2673.7,2673.2,0.74805]
[1739437463521,0.74801,2673.4,2673.2,0.74804]
[1739437463723,3.7962,2673.7,2672.9,44.0078]
[1739437464030,3.7962,2673.7,2673.0,0.7481]
[1739437464031,0.74808,2673.2,2673.0,0.7481]
[1739437464218,3.7962,2673.7,2672.9,3.2078]
[1739437464420,3.7962,2673.7,2672.8,4.42900833]
[1739437464624,3.2078,2673.7,2672.9,40.8]
[1739437464931,0.74798,2673.5,2673.3,0.74802]
[1739437465233,3.2078,2673.7,2673.0,3.2078]
[1739437465729,0.29399381,2673.8,2673.7,0.74791]
[1739437465921,0.5427,2673.9,2673.7,0.74791]
[1739437466122,0.5427,2673.9,2673.8,0.74789]
[1739437466532,0.5427,2673.9,2673.4,1.0819]
[1739437466828,0.84200749,2673.9,2673.5,3.2078]
[1739437467138,0.74805,2673.3,2673.1,1.28947]
[1739437467325,1.86986,2673.6,2673.1,0.5414]
[1739437467529,0.74805,2673.3,2673.1,1.28947]
[1739437467729,0.74805,2673.2,2673.1,0.5414]
[1739437468130,1.86993,2673.5,2672.9,0.5405]
[1739437468328,0.74811,2673.0,2672.9,0.5405]
[1739437468524,1.86993,2673.5,2672.9,0.5405]
[1739437468733,0.55379738,2673.6,2672.9,0.5405]
[1739437468929,0.7481,2673.1,2672.9,0.5405]
[1739437469131,0.55379738,2673.6,2673.2,0.74805]
[1739437469332,0.55379738,2673.6,2673.0,3.2078]
[1739437469535,0.55379738,2673.6,2672.9,0.5405]
[1739437469732,3.76159738,2673.7,2672.9,0.5405]
[1739437469936,3.76159738,2673.7,2673.3,0.74802]
[1739437470235,0.74806,2673.2,2673.1,0.74807]
[1739437470425,1.86986,2673.6,2672.9,0.5405]
[1739437470632,0.74811,2673.0,2672.9,0.5405]
[1739437470928,0.74811,2673.0,2672.9,1.28863]
[1739437471134,1.30954,2673.3,2672.9,0.5405]
[1739437471332,0.74807,2673.2,2673.1,0.74807]
[1739437471637,0.5615,2673.3,2672.9,0.5405]
[1739437472034,2.42369738,2673.6,2673.0,0.7481]
[1739437472035,0.7481,2673.1,2673.0,0.7481]
[1739437472539,1.11529738,2673.6,2673.5,0.74797]
[1739437472727,0.74795,2673.6,2673.5,0.74795]
[1739437473127,3.76160373,2674.0,2673.5,1.1564]
[1739437473327,3.76160373,2674.0,2673.6,0.74793]
[1739437473328,0.74793,2673.7,2673.6,0.74793]
[1739437473538,0.7479,2673.8,2673.7,0.7479]
[1739437473735,0.74793,2673.7,2673.6,0.74793]
[1739437474037,3.2078,2674.0,2673.5,4.45791534]
[1739437474341,0.74794,2673.6,2673.5,4.45791534]
[1739437474831,0.74791,2673.8,2673.5,4.45791534]
[1739437475039,3.2078,2674.0,2673.5,4.45791534]
[1739437475231,0.74783,2674.0,2673.9,0.74786]
[1739437475638,0.55370379,2674.4,2673.7,3.2078]
[1739437475835,0.55370379,2674.4,2673.8,3.30151534]
[1739437476140,0.74786,2673.9,2673.8,4.04939534]
[1739437476334,0.74786,2673.9,2673.8,3.30151534]
[1739437476531,0.74786,2673.9,2673.8,4.04940534]
[1739437476845,0.55370379,2674.4,2673.8,3.30151534]
[1739437477149,0.74776,2674.3,2674.1,4.04929534]
[1739437477438,0.74775,2674.3,2674.2,1.87307]
[1739437477625,0.55370379,2674.4,2674.2,1.1253]
[1739437477830,0.55370379,2674.7,2674.2,1.1253]
[1739437478038,0.55370379,2674.7,2674.2,1.87306]
[1739437478237,0.74774,2674.4,2674.3,0.74775]
[1739437478437,0.74775,2674.3,2674.2,1.13091451]
[1739437480133,0.74775,2674.3,2674.2,0.00561451]
[1739437481239,1.34115,2674.3,2674.2,0.00561451]
[1739437481434,0.74794,2673.6,2673.5,3.30151534]
[1739437481735,0.7479,2673.8,2673.5,3.30151534]
[1739437481933,1.86944,2674.2,2673.6,0.74792]
[1739437482137,3.7993,2674.4,2673.3,3.2078]
[1739437482343,0.00561,2674.5,2674.1,3.30151534]
[1739437482536,0.00561,2674.5,2674.3,0.74773]
[1739437482741,0.00561,2674.5,2674.1,3.30151534]
[1739437482742,0.00561,2674.5,2674.4,0.74772]
[1739437482945,0.00561,2674.5,2674.1,3.88051534]
[1739437483141,0.00561,2674.5,2674.4,0.74772]
[1739437483633,0.00561,2674.5,2674.4,1.30952]
[1739437486141,0.00561,2674.5,2674.4,4.61103534]
[1739437486934,0.7533,2674.5,2674.4,4.61103534]
[1739437487137,0.7533,2674.5,2674.4,3.86331534]
[1739437487339,0.00561,2674.5,2674.4,4.61103534]
[1739437487743,0.00561,2674.5,2674.4,5.51116086]
[1739437488435,1.34089,2675.2,2675.1,0.74752]
[1739437488633,0.74752,2675.1,2675.0,3.30151534]
[1739437490040,0.74761,2674.8,2674.7,3.30151534]
[1739437491243,0.74769,2674.5,2674.4,3.30151534]
[1739437492446,0.74777,2674.2,2674.1,3.30151534]
[1739437493034,1.86935,2674.4,2673.8,3.30151534]
[1739437493234,0.5877,2674.3,2673.8,3.30151534]
[1739437493639,0.7478,2674.2,2673.9,0.74786]
[1739437493841,0.7478,2674.2,2673.9,0.74784]
[1739437494143,3.2078,2675.9,2674.1,9.81083068]
[1739437494344,0.74741,2675.5,2675.4,3.30151534]
[1739437494543,3.2078,2675.6,2674.8,6.50931534]
[1739437494840,3.95527,2675.3,2675.2,0.00561451]
[1739437495042,3.95527,2675.3,2674.2,6.50931534]
[1739437495043,3.88124613,2675.3,2674.2,6.50931534]
[1739437495247,5.07698,2674.6,2673.9,6.50931534]
[1739437495442,1.8231763,2674.5,2673.9,6.50931534]
[1739437495644,0.7478,2674.2,2673.9,6.50931534]
[1739437495849,1.1497,2674.5,2673.9,6.50931534]
[1739437496244,1.15531451,2674.5,2673.9,7.26277985]
[1739437496442,1.90302451,2674.5,2673.9,6.51492985]
[1739437496638,1.15531451,2674.5,2674.2,6.50931534]
[1739437497060,0.59681451,2674.5,2674.4,0.74772]
[1739437497350,0.00561451,2674.5,2674.4,0.74772]
[1739437497949,0.00561451,2674.5,2674.3,1.88173]
[1739437498146,0.00561451,2674.5,2674.4,0.74772]
[1739437500351,0.00561451,2674.5,2674.2,6.50931534]
[1739437500651,0.75330451,2674.5,2674.2,6.50931534]
[1739437500849,0.00561451,2674.5,2674.2,6.50931534]
[1739437501447,0.75332451,2674.5,2674.2,6.50931534]
[1739437501649,0.75332451,2674.5,2674.2,7.25707534]
[1739437501848,0.00561451,2674.5,2674.2,6.50931534]
[1739437502051,0.00561451,2674.5,2673.9,1.11381451]
[1739437502052,3.21341451,2674.5,2673.9,0.00561451]
[1739437502249,0.65413747,2674.4,2673.9,0.00561451]
[1739437502548,0.582,2674.3,2674.2,0.74777]
[1739437502951,0.00561451,2674.5,2674.4,0.74772]
[1739437503155,0.00561451,2674.5,2674.4,3.95552]
[1739437505347,1.15334745,2675.5,2674.4,3.2078]
[1739437505560,1.15334745,2675.5,2675.3,0.74744]
[1739437505561,1.87487075,2675.5,2675.3,0.74744]
[1739437505851,1.87487075,2675.5,2675.2,3.2078]
[1739437505852,0.5855,2675.5,2675.2,3.2078]
[1739437506048,0.74747,2675.3,2675.2,3.2078]
[1739437506549,0.5855,2675.5,2675.2,3.2078]
[1739437506755,0.5855,2675.5,2675.4,0.74744]
[1739437506954,0.5855,2675.5,2675.2,3.2078]
[1739437507160,0.74745,2675.4,2675.2,3.2078]
[1739437507348,0.5855,2675.5,2675.2,3.2078]
[1739437507656,1.15315775,2676.0,2675.4,3.30151534]
[1739437507857,1.09315075,2675.9,2675.6,3.2078]
[1739437508157,0.54195075,2675.9,2675.7,3.30151534]
[1739437508848,0.5512,2676.1,2675.7,3.30151534]
[1739437509053,0.74733,2675.8,2675.7,3.30151534]
[1739437509359,0.5512,2676.1,2675.6,3.2078]
[1739437510252,0.06401403,2676.0,2675.4,0.00561451]
[1739437510661,0.74734,2675.8,2675.4,0.00561451]
[1739437510849,0.5512,2676.1,2675.6,3.2078]
[1739437511049,0.74729,2676.0,2675.6,3.2078]
[1739437511353,1.29845,2676.1,2675.8,0.74731]
[1739437511656,0.5512,2676.1,2675.7,0.5724]
[1739437512053,0.5512,2676.1,2676.0,0.74727]
[1739437512260,0.5566,2676.3,2675.9,3.2078]
[1739437512448,1.1402,2676.3,2675.9,3.2078]
[1739437512654,0.74723,2676.2,2675.9,3.95509]
[1739437512855,1.1402,2676.3,2675.9,3.2078]
[1739437513658,1.15315775,2676.5,2676.1,3.83659907]
[1739437513958,0.54195075,2676.5,2676.4,4.58375907]
[1739437514147,1.70565075,2677.3,2676.4,3.83659907]
[1739437514355,0.60328467,2677.2,2676.6,3.2078]
[1739437514550,0.05179461,2677.1,2676.6,3.2078]
[1739437514749,0.74708,2676.7,2676.6,3.2078]
[1739437517159,0.74729,2676.0,2675.8,3.2078]
[1739437517353,3.58969,2676.6,2675.8,3.2078]